[Event "XVII Orsha-2019 Open"]
[Site "Orsha"]
[Date "2019.01.19"]
[Round "3.11"]
[White "Silich, Yahor"]
[Black "Zeliantsova, Kseniya"]
[Result "1-0"]
[ECO "B31"]
[WhiteElo "2116"]
[BlackElo "1858"]
[PlyCount "77"]
[EventDate "2019.01.18"]
[EventType "swiss"]
[EventCountry "BLR"]
[TimeControl "5400+30"]

1. e4 c5 2. Nf3 Nc6 3. Bb5 g6 4. O-O Bg7 5. Re1 Nh6 6. c3 Qb6 7. Bf1 d6 8. h3 e5 9. Na3 O-O 10. Nc4 Qc7 11. d4 b6 12. dxc5 dxc5 13. Ne3 Ne7 14. Bc4 Bb7 15. Qc2 Rad8 16. a4 Kh8 17. b3 f6 18. h4 Nf7 19. h5 Nd6 20. h6 Bxh6 21. Nd5 Nxd5 22. Bxh6 Nf4 23. Bxf8 Rxf8 24. g3 Qc8 25. Bf1 Ne6 26. Rad1 Nf7 27. Bg2 c4 28. b4 a5 29. Qb2 Neg5 30. Nxg5 Nxg5 31. bxa5 bxa5 32. Rd6 f5 33. Qb5 Re8 34. exf5 Bxg2 35. Kxg2 e4 36. Qc6 Qb8 37. Rd7 Qe5 38. Rd5 Qe7 39. f6 1-0

[Event "XVII Orsha-2019 Open"]
[Site "Orsha"]
[Date "2019.01.19"]
[Round "3.12"]
[White "Gabdrakipov, Ilshat"]
[Black "Sukalina, Alina"]
[Result "1-0"]
[ECO "C30"]
[WhiteElo "2098"]
[BlackElo "1546"]
[PlyCount "71"]
[EventDate "2019.01.18"]
[EventType "swiss"]
[EventCountry "BLR"]
[TimeControl "5400+30"]

1. e4 e5 2. Nc3 Nc6 3. Bc4 Nf6 4. d3 Bc5 5. f4 d6 6. Nf3 Bg4 7. Na4 Bb6 8. Nxb6 axb6 9. c3 Qe7 10. f5 Bxf3 11. Qxf3 Nd7 12. O-O O-O-O 13. b4 f6 14. a4 g6 15. a5 bxa5 16. b5 Ncb8 17. Rxa5 Rdf8 18. Be6 g5 19. Ra8 Qe8 20. Be3 Kd8 21. d4 Ke7 22. Ra7 Qc8 23. Qh5 Qe8 24. Qe2 Qc8 25. dxe5 dxe5 26. Bc5+ Nxc5 27. Bxc8 Rxc8 28. Rd1 Rhd8 29. Raa1 Nbd7 30. Rd5 Ra8 31. Rad1 Ra4 32. Qh5 Rf8 33. Qxh7+ Rf7 34. Rxd7+ Nxd7 35. Rxd7+ Kxd7 36. Qxf7+ 1-0

[Event "XVII Orsha-2019 Open"]
[Site "Orsha"]
[Date "2019.01.19"]
[Round "3.14"]
[White "Vainerchuk, Barys"]
[Black "Tihonov, Jurij"]
[Result "1/2-1/2"]
[ECO "B53"]
[WhiteElo "1907"]
[BlackElo "2399"]
[PlyCount "97"]
[EventDate "2019.01.18"]
[EventType "swiss"]
[EventCountry "BLR"]
[TimeControl "5400+30"]

1. e4 c5 2. Nf3 d6 3. d4 cxd4 4. Qxd4 Nc6 5. Bb5 a6 6. Bxc6+ bxc6 7. c4 e5 8. Qd3 Nf6 9. Nc3 Be7 10. O-O O-O 11. Bg5 Qb6 12. b3 Rd8 13. Rfd1 Be6 14. Qe2 h6 15. Bh4 g5 16. Bg3 Nh5 17. Rac1 Qc7 18. Nd5 Qd7 19. Nxe7+ Qxe7 20. c5 f6 21. cxd6 Rxd6 22. Rxd6 Qxd6 23. Rd1 Qe7 24. Ne1 Nxg3 25. hxg3 a5 26. Qc2 c5 27. Nd3 Rd8 28. Rc1 c4 29. bxc4 Rd4 30. c5 Qc7 31. Nb2 Bxa2 32. Ra1 Be6 33. f3 Kg7 34. Rf1 Qc6 35. Qc3 Rb4 36. Re1 Rb3 37. Qc2 a4 38. Kh2 Qb5 39. Nd1 Rb4 40. Ne3 Rb2 41. Qd1 a3 42. c6 a2 43. Qd6 Rb1 44. Nd5 Bxd5 45. exd5 Rxe1 46. Qd7+ Kf8 47. Qd8+ Kf7 48. Qd7+ Kg6 49. Qe8+ 1/2-1/2

[Event "XVII Orsha-2019 Open"]
[Site "Orsha"]
[Date "2019.01.19"]
[Round "3.15"]
[White "Paniagua Chnelik, Sebastian"]
[Black "Gabdrakipov, Kirill"]
[Result "1-0"]
[ECO "D17"]
[WhiteElo "2188"]
[BlackElo "1901"]
[PlyCount "127"]
[EventDate "2019.01.18"]
[EventType "swiss"]
[EventCountry "BLR"]
[TimeControl "5400+30"]

1. d4 d5 2. Nf3 Nf6 3. c4 c6 4. Nc3 dxc4 5. a4 Bf5 6. Ne5 Na6 7. e3 Nb4 8. Bxc4 e6 9. O-O Bd6 10. Qe2 Qc7 11. e4 Bg6 12. Nf3 e5 13. dxe5 Bxe5 14. Nxe5 Qxe5 15. Be3 O-O 16. f3 Rfe8 17. Rad1 a6 18. Qf2 b5 19. Bb3 Rad8 20. Bb6 Rd7 21. Bd4 Qc7 22. Bxf6 gxf6 23. Rxd7 Qxd7 24. Rd1 Qe7 25. Qd4 c5 26. Qf2 c4 27. Bc2 Nxc2 28. Qxc2 Qc5+ 29. Qf2 Qxf2+ 30. Kxf2 bxa4 31. Rd6 Rb8 32. Nxa4 f5 33. Ke3 fxe4 34. fxe4 Rb3+ 35. Kf4 a5 36. Rd5 f6 37. Rxa5 Be8 38. Ra8 Kf7 39. Ra7+ Kg6 40. g3 Rb4 41. Nc3 Rxb2 42. h4 Bf7 43. h5+ Kg7 44. Nd5 Rf2+ 45. Ke3 Rh2 46. g4 Rh3+ 47. Kf4 Rh1 48. Rc7 Rf1+ 49. Ke3 Rg1 50. Kf3 Rc1 51. Ne3 c3 52. Ke2 Kg8 53. Nf5 Bb3 54. Nd4 Bd1+ 55. Kd3 Bxg4 56. h6 Rd1+ 57. Ke3 f5 58. exf5 Rxd4 59. Kxd4 Bxf5 60. Ke5 Bg6 61. Kf6 Kf8 62. Rc8+ Be8 63. Rxc3 Bd7 64. Rb3 1-0

[Event "XVII Orsha-2019 Open"]
[Site "Orsha"]
[Date "2019.01.19"]
[Round "3.16"]
[White "Gonov, Sergey"]
[Black "Budnikov, Sergei"]
[Result "1/2-1/2"]
[ECO "B15"]
[WhiteElo "1905"]
[BlackElo "2152"]
[PlyCount "81"]
[EventDate "2019.01.18"]
[EventType "swiss"]
[EventCountry "BLR"]
[TimeControl "5400+30"]

1. e4 c6 2. d4 d5 3. Nc3 dxe4 4. Nxe4 Nf6 5. Ng5 h6 6. N5f3 Bf5 7. Bd3 Bxd3 8. Qxd3 e6 9. Bd2 Nbd7 10. Ne2 Bd6 11. c4 Nf8 12. O-O Ng6 13. b4 O-O 14. a4 Rc8 15. a5 Qe7 16. a6 b6 17. c5 Bc7 18. cxb6 Bxb6 19. Rfc1 Rfd8 20. Rc4 e5 21. Qc2 e4 22. Ne1 Nd5 23. Ra3 Qe6 24. Be3 f5 25. g3 Rf8 26. Ng2 Nxe3 27. fxe3 Ne7 28. Ngf4 Qd6 29. Nc3 g5 30. Nfe2 Rf6 31. Ra1 Rcf8 32. b5 cxb5 33. Nxb5 Qd7 34. Qb3 Kg7 35. Rac1 R8f7 36. Nbc3 Ng6 37. Qb5 Qxb5 38. Nxb5 f4 39. exf4 gxf4 40. Nec3 Rd7 41. Nxe4 1/2-1/2

[Event "XVII Orsha-2019 Open"]
[Site "Orsha"]
[Date "2019.01.19"]
[Round "3.17"]
[White "Tsesler, Yakau"]
[Black "Papunidi, Matvey"]
[Result "0-1"]
[ECO "D00"]
[WhiteElo "1895"]
[BlackElo "2113"]
[PlyCount "104"]
[EventDate "2019.01.18"]
[EventType "swiss"]
[EventCountry "BLR"]
[TimeControl "5400+30"]

1. a3 d5 2. d4 Bf5 3. Nf3 Nf6 4. e3 e6 5. Bd3 Bg6 6. O-O Bd6 7. b4 Nbd7 8. Bb2 O-O 9. Nbd2 c6 10. Ne5 Be7 11. Nxg6 hxg6 12. c4 Re8 13. Re1 Bd6 14. f4 a6 15. c5 Bc7 16. a4 Qe7 17. Qe2 Reb8 18. b5 Ba5 19. Reb1 Bxd2 20. Qxd2 Ne4 21. Qc2 f5 22. Bc1 axb5 23. axb5 Qd8 24. g3 Rxa1 25. Rxa1 Ra8 26. Ra4 cxb5 27. Rxa8 Qxa8 28. Bxb5 Ndf6 29. Bd3 Qa5 30. Kf1 Ng4 31. Bxe4 dxe4 32. h3 Nf6 33. Qb3 Qa6+ 34. Kf2 Nd5 35. Qb2 Qa4 36. Qd2 Nb4 37. Bb2 Nd3+ 38. Kg2 Qa2 39. Bc3 Qb1 40. Qe2 Kf7 41. Qd2 Ke7 42. Ba5 Kd7 43. Bc3 Kc6 44. h4 Kd5 45. Ba5 Qb2 46. Bc3 Qxd2+ 47. Bxd2 Kc4 48. Kf1 Kb3 49. Ke2 Kc2 50. Ba5 Nc1+ 51. Kf2 Kd3 52. Bc7 Na2 0-1

[Event "XVII Orsha-2019 Open"]
[Site "Orsha"]
[Date "2019.01.19"]
[Round "3.18"]
[White "Strybuk, Artsiom I"]
[Black "Staravoitava, Hanna"]
[Result "1-0"]
[ECO "D97"]
[WhiteElo "2110"]
[BlackElo "1864"]
[PlyCount "67"]
[EventDate "2019.01.18"]
[EventType "swiss"]
[EventCountry "BLR"]
[TimeControl "5400+30"]

1. d4 Nf6 2. c4 g6 3. Nc3 d5 4. Nf3 Bg7 5. Qb3 dxc4 6. Qxc4 O-O 7. e4 c6 8. Be2 b5 9. Qb3 a5 10. Qc2 Na6 11. O-O Qb6 12. h3 Nc7 13. Be3 Qb7 14. Rac1 Be6 15. Qb1 a4 16. a3 Rfb8 17. Ne5 c5 18. d5 Nfxd5 19. exd5 Bf5 20. Bd3 Bxe5 21. Bxf5 b4 22. d6 exd6 23. Be4 Qa6 24. axb4 cxb4 25. Nxa4 d5 26. Nc5 Qd6 27. Bf3 b3 28. Rfd1 Ra2 29. Bd4 Bf4 30. Nxb3 Qa6 31. Nc5 Qa5 32. Nd7 Raxb2 33. Bxb2 Bxc1 34. Qxc1 1-0

[Event "XVII Orsha-2019 Open"]
[Site "Orsha"]
[Date "2019.01.19"]
[Round "3.19"]
[White "Kolosovskaya, Olga"]
[Black "Navumenka, Mikhei"]
[Result "0-1"]
[ECO "E00"]
[WhiteElo "1855"]
[BlackElo "2104"]
[PlyCount "122"]
[EventDate "2019.01.18"]
[EventType "swiss"]
[EventCountry "BLR"]
[TimeControl "5400+30"]

1. d4 Nf6 2. c4 e6 3. g3 Bb4+ 4. Bd2 Be7 5. Bg2 O-O 6. Nf3 c5 7. O-O Nc6 8. dxc5 Bxc5 9. Nc3 a6 10. Rc1 Be7 11. Bf4 d6 12. e4 e5 13. Bg5 Bg4 14. Be3 Ne8 15. h3 Bxf3 16. Bxf3 Bg5 17. Qd2 Nd4 18. Bg2 Bxe3 19. Qxe3 Nc7 20. f4 b5 21. fxe5 dxe5 22. c5 Nce6 23. Nd5 Nc6 24. Bf3 Ned4 25. Bg4 f5 26. Nb6 fxg4 27. Nxa8 Qxa8 28. hxg4 h6 29. Kg2 Qd8 30. a3 a5 31. Rcd1 Qg5 32. Qxg5 hxg5 33. Rxf8+ Kxf8 34. Rf1+ Ke7 35. Rh1 a4 36. Rh8 Nd8 37. Rg8 N4e6 38. Kf2 Kd7 39. Ke3 Kc6 40. Kd3 Kxc5 41. Re8 Kd6 42. Rh8 Nf7 43. Rb8 Nd4 44. Rb7 Ke6 45. Rb6+ Nd6 46. Ra6 Nb3 47. Ra7 Nc5+ 48. Kc3 Ncxe4+ 49. Kb4 g6 50. Rg7 Kd5 51. Rxg6 Kd4 52. b3 axb3 53. Kxb3 Nf7 54. Kb4 Ned6 55. a4 bxa4 56. Kxa4 e4 57. Kb3 Kd3 58. Re6 e3 59. Re7 e2 60. Kb4 Ne4 61. Rd7+ Nfd6 0-1

[Event "XVII Orsha-2019 Open"]
[Site "Orsha"]
[Date "2019.01.19"]
[Round "3.20"]
[White "Sychou, Dzmitry"]
[Black "Kuleshov, Konstantin"]
[Result "1/2-1/2"]
[ECO "A10"]
[WhiteElo "1847"]
[BlackElo "2098"]
[PlyCount "80"]
[EventDate "2019.01.18"]
[EventType "swiss"]
[EventCountry "BLR"]
[TimeControl "5400+30"]

1. c4 f5 2. g3 Nf6 3. Bg2 g6 4. Nc3 Bg7 5. d3 O-O 6. e4 fxe4 7. dxe4 e5 8. Nge2 d6 9. O-O c5 10. Nb5 Ne8 11. Qd5+ Rf7 12. Rd1 Qf6 13. Be3 Bf8 14. f4 Nc6 15. fxe5 Qxe5 16. Qxe5 dxe5 17. Rf1 Nd4 18. Rxf7 Kxf7 19. Rf1+ Kg8 20. Nbc3 Be6 21. b3 a6 22. Nc1 b5 23. Nd5 bxc4 24. bxc4 Nc2 25. Bg5 h6 26. Be7 Bxe7 27. Nxe7+ Kg7 28. Nd5 Bxd5 29. exd5 Ne3 30. Re1 Nxc4 31. Nd3 Rc8 32. Nxe5 Nxe5 33. Rxe5 c4 34. Be4 Nd6 35. Bc2 Rf8 36. Re6 Rf6 37. Re7+ Rf7 38. Re6 Rf6 39. Re7+ Rf7 40. Re6 Rf6 1/2-1/2

[Event "XVII Orsha-2019 Open"]
[Site "Orsha"]
[Date "2019.01.19"]
[Round "3.21"]
[White "Pogosian, Georgy"]
[Black "Ivanov, Igor"]
[Result "1-0"]
[ECO "E94"]
[WhiteElo "2090"]
[BlackElo "2131"]
[PlyCount "35"]
[EventDate "2019.01.18"]
[EventType "swiss"]
[EventCountry "BLR"]
[TimeControl "5400+30"]

1. d4 Nf6 2. Nf3 g6 3. c4 Bg7 4. Nc3 O-O 5. e4 d6 6. Be2 e5 7. O-O exd4 8. Nxd4 Re8 9. f3 Nc6 10. Be3 Nh5 11. Qd2 Nf4 12. Rfd1 Nxd4 13. Bxd4 Nxe2+ 14. Nxe2 Be6 15. Rac1 b6 16. b3 Qe7 17. Nc3 c6 18. Bxg7 1-0

[Event "XVII Orsha-2019 Open"]
[Site "Orsha"]
[Date "2019.01.19"]
[Round "3.22"]
[White "Poliakova, Varvara"]
[Black "Elkin, Leonid"]
[Result "1-0"]
[ECO "B51"]
[WhiteElo "1835"]
[BlackElo "2085"]
[PlyCount "97"]
[EventDate "2019.01.18"]
[EventType "swiss"]
[EventCountry "BLR"]
[TimeControl "5400+30"]

1. e4 c5 2. Nf3 d6 3. Bb5+ Nd7 4. Bxd7+ Bxd7 5. O-O Nf6 6. Re1 g6 7. d4 cxd4 8. Nxd4 Bg7 9. f3 Qb6 10. Be3 Qxb2 11. Nb3 Qe5 12. Bd4 Qg5 13. e5 dxe5 14. Rxe5 Qh4 15. g3 Qh3 16. Qe2 O-O 17. Nc3 b6 18. Nd1 Bc6 19. Nf2 Qd7 20. Rd1 Qb7 21. Rxe7 Bxf3 22. Qe5 Qd5 23. Rd3 Rfe8 24. Qxd5 Bxd5 25. Bxf6 Bxb3 26. Rxe8+ Rxe8 27. Bxg7 Bc4 28. Bc3 Bxd3 29. cxd3 Re2 30. a3 Ra2 31. Bb4 a5 32. Bd6 f5 33. Kg2 b5 34. Kf3 b4 35. axb4 a4 36. Ke3 Rb2 37. Nd1 a3 38. Nc3 Rxh2 39. b5 a2 40. Nxa2 Rxa2 41. Kd4 Kf7 42. Kd5 g5 43. b6 Rb2 44. Kc6 Ke6 45. Bc5 f4 46. gxf4 gxf4 47. d4 f3 48. d5+ Ke5 49. d6 1-0

[Event "XVII Orsha-2019 Open"]
[Site "Orsha"]
[Date "2019.01.19"]
[Round "3.23"]
[White "Grigoryan, Aram"]
[Black "Kirilin, Dmitrij"]
[Result "0-1"]
[ECO "E20"]
[WhiteElo "1786"]
[BlackElo "2074"]
[PlyCount "72"]
[EventDate "2019.01.18"]
[EventType "swiss"]
[EventCountry "BLR"]
[TimeControl "5400+30"]

1. d4 Nf6 2. c4 e6 3. Nc3 Bb4 4. e3 c5 5. Bd2 cxd4 6. exd4 d5 7. a3 Bxc3 8. Bxc3 dxc4 9. Bxc4 O-O 10. Nf3 b6 11. O-O Bb7 12. Qe2 Nd5 13. Bd2 Nd7 14. Bg5 N7f6 15. Rfe1 Rc8 16. Rad1 h6 17. Bc1 Ne4 18. Ne5 Nd6 19. Ba2 Nf5 20. f3 Rc7 21. Bb1 Qc8 22. Qf2 Qd8 23. Qf1 f6 24. Ng6 Re8 25. g4 Nd6 26. Nf4 Rxc1 27. Rxc1 Nxf4 28. Ba2 Qd7 29. Rcd1 Qc6 30. d5 Qc5+ 31. Kh1 Nxd5 32. b4 Qc2 33. Re2 Qc3 34. Red2 Qxa3 35. Bb1 Nf4 36. Rxd6 Bxf3+ 0-1

[Event "XVII Orsha-2019 Open"]
[Site "Orsha"]
[Date "2019.01.19"]
[Round "3.24"]
[White "Vifleemskaia, Svetlana"]
[Black "Prutskov, Aleksei"]
[Result "1/2-1/2"]
[ECO "B50"]
[WhiteElo "2030"]
[BlackElo "1824"]
[PlyCount "68"]
[EventDate "2019.01.18"]
[EventType "swiss"]
[EventCountry "BLR"]
[TimeControl "5400+30"]

1. e4 c5 2. Nf3 d6 3. c3 Nf6 4. h3 Nc6 5. Bd3 g6 6. Bc2 Bg7 7. O-O O-O 8. d4 cxd4 9. cxd4 e6 10. Nc3 a6 11. Bg5 h6 12. Be3 b5 13. Nd2 Bb7 14. f4 e5 15. fxe5 dxe5 16. d5 Nd4 17. Nb3 Re8 18. Nxd4 exd4 19. Bxd4 b4 20. Na4 Nxe4 21. Bxg7 Kxg7 22. Qd4+ Nf6 23. Nb6 Rb8 24. Ba4 Re6 25. Nd7 Rd6 26. Rxf6 Rxd5 27. Qf4 Rxd7 28. Bxd7 Qxf6 29. Qxb8 Qxb2 30. Qxb7 Qxa1+ 31. Kh2 Qe5+ 32. Kg1 Qd4+ 33. Kh2 Qf4+ 34. Kg1 Qd4+ 1/2-1/2

[Event "XVII Orsha-2019 Open"]
[Site "Orsha"]
[Date "2019.01.19"]
[Round "3.25"]
[White "Bury, Gleb M"]
[Black "Ghevondyan, Arman"]
[Result "1/2-1/2"]
[ECO "B39"]
[WhiteElo "1961"]
[BlackElo "1679"]
[PlyCount "78"]
[EventDate "2019.01.18"]
[EventType "swiss"]
[EventCountry "BLR"]
[TimeControl "5400+30"]

1. e4 c5 2. Nf3 Nc6 3. d4 cxd4 4. Nxd4 g6 5. c4 Bg7 6. Be3 Nf6 7. Nc3 Ng4 8. Qxg4 Nxd4 9. Qd1 Ne6 10. Be2 Qa5 11. O-O Bxc3 12. bxc3 Qxc3 13. Rc1 Qe5 14. Bd3 g5 15. c5 h5 16. Qa4 h4 17. Rfd1 g4 18. Bb5 g3 19. fxg3 hxg3 20. Bxd7+ Bxd7 21. Rxd7 gxh2+ 22. Kh1 Kf8 23. Rxb7 Rh4 24. Qd7 Ng7 25. Bd4 Qxe4 26. Bxg7+ Kxg7 27. Qxe7 Qf4 28. Rcb1 Rc8 29. R7b4 Qxb4 30. Rxb4 Rxb4 31. Qg5+ Kf8 32. Qh6+ Kg8 33. Qg5+ Kf8 34. Kxh2 Rc4 35. Qh6+ Kg8 36. Qg5+ Kf8 37. Qh6+ Kg8 38. Qg5+ Kf8 39. Qh6+ Kg8 1/2-1/2

[Event "XVII Orsha-2019 Open"]
[Site "Orsha"]
[Date "2019.01.19"]
[Round "3.26"]
[White "Dolgopyatov, Andrey"]
[Black "Stashis, Anna"]
[Result "1/2-1/2"]
[ECO "D00"]
[WhiteElo "1393"]
[BlackElo "1931"]
[PlyCount "80"]
[EventDate "2019.01.18"]
[EventType "swiss"]
[EventCountry "BLR"]
[TimeControl "5400+30"]

1. d4 d5 2. Nf3 c6 3. Bg5 h6 4. Bh4 Qb6 5. b3 Bf5 6. e3 e6 7. Bd3 Bxd3 8. Qxd3 Nd7 9. O-O Ngf6 10. c3 Ne4 11. Nbd2 Ndf6 12. Ne5 Nxd2 13. Qxd2 Ne4 14. Qd3 g5 15. Bg3 h5 16. h3 Bd6 17. Bh2 f6 18. f3 fxe5 19. fxe4 O-O-O 20. Rf7 exd4 21. exd4 e5 22. Rd1 exd4 23. cxd4 Bxh2+ 24. Kxh2 dxe4 25. Qxe4 Kb8 26. Qe5+ Ka8 27. d5 cxd5 28. Rxd5 Rxd5 29. Qxd5 g4 30. Qf5 Rd8 31. hxg4 hxg4 32. Qf4 a6 33. Qxg4 Rh8+ 34. Kg3 Qd6+ 35. Rf4 Qd5 36. Rd4 Qe5+ 37. Rf4 Qd5 38. Rd4 Qe5+ 39. Rf4 Qd5 40. Rf5 Qd3+ 1/2-1/2

[Event "XVII Orsha-2019 Open"]
[Site "Orsha"]
[Date "2019.01.19"]
[Round "3.27"]
[White "Dmitriev, Nikolay"]
[Black "Dolgopyatov, Evgeniy"]
[Result "1-0"]
[ECO "D79"]
[WhiteElo "1923"]
[BlackElo "1661"]
[PlyCount "31"]
[EventDate "2019.01.18"]
[EventType "swiss"]
[EventCountry "BLR"]
[TimeControl "5400+30"]

1. Nf3 c5 2. g3 g6 3. Bg2 Bg7 4. O-O d5 5. c3 Nc6 6. d4 cxd4 7. cxd4 Nf6 8. Nc3 O-O 9. Ne5 Ne4 10. Nxc6 bxc6 11. Nxe4 dxe4 12. Bxe4 Bxd4 13. Bh6 Bxb2 14. Bxf8 Bh3 15. Qxd8 Rxd8 16. Bh6 1-0

[Event "XVII Orsha-2019 Open"]
[Site "Orsha"]
[Date "2019.01.19"]
[Round "3.28"]
[White "Katkov, Mikhail"]
[Black "Kuleba, Ivan"]
[Result "1-0"]
[ECO "A36"]
[WhiteElo "1916"]
[BlackElo "1617"]
[PlyCount "69"]
[EventDate "2019.01.18"]
[EventType "swiss"]
[EventCountry "BLR"]
[TimeControl "5400+30"]

1. c4 c5 2. Nc3 Nc6 3. g3 g6 4. Bg2 Bg7 5. e4 e5 6. Nge2 d6 7. h3 Nge7 8. O-O O-O 9. a3 Be6 10. d3 Qd7 11. Kh2 f5 12. f4 Rab8 13. Rb1 a5 14. fxe5 Bxe5 15. Nf4 Kh8 16. Bd2 Nd4 17. Ncd5 Bxd5 18. exd5 a4 19. Ne6 Rfc8 20. Nxd4 Bxd4 21. Re1 Ng8 22. b4 h6 23. Re6 Kh7 24. Bf4 Be5 25. Bxe5 dxe5 26. Rxe5 b6 27. Re6 Re8 28. bxc5 bxc5 29. Rxb8 Rxb8 30. Rc6 Rb3 31. d6 Kh8 32. Qa1+ Qg7 33. Qxg7+ Kxg7 34. d7 Rxd3 35. Bd5 1-0

[Event "XVII Orsha-2019 Open"]
[Site "Orsha"]
[Date "2019.01.19"]
[Round "3.29"]
[White "Viikmaa, Karmen"]
[Black "Abrazevich, Yauheni"]
[Result "0-1"]
[ECO "A08"]
[WhiteElo "1706"]
[BlackElo "1914"]
[PlyCount "84"]
[EventDate "2019.01.18"]
[EventType "swiss"]
[EventCountry "BLR"]
[TimeControl "5400+30"]

1. Nf3 d5 2. g3 c5 3. Bg2 Nc6 4. d3 e5 5. O-O Nf6 6. Nbd2 Be7 7. e4 d4 8. Nc4 Nd7 9. a4 b6 10. c3 a6 11. Qb3 O-O 12. h3 Rb8 13. Na3 Nf6 14. Nh4 dxc3 15. bxc3 Qxd3 16. Be3 Nd4 17. Bxd4 cxd4 18. Rac1 Nxe4 19. Rfd1 Nxg3 20. Rxd3 Ne2+ 21. Kf1 Nxc1 22. Qc2 Nxd3 23. Qxd3 Bxh4 24. cxd4 exd4 25. Qxd4 Bf6 26. Qf4 Be6 27. Nc2 Rbc8 28. Ne3 Rfd8 29. Ng4 Bxg4 30. hxg4 Rd4 31. Be4 Rcc4 32. g5 Bxg5 33. Qxg5 h6 34. Qe3 Rxe4 35. Qxb6 Rxa4 36. Qd8+ Kh7 37. Qd7 Rf4 38. Qd6 Rf5 39. Qd3 Raf4 40. Qxa6 Rxf2+ 41. Ke1 g6 42. Qc4 h5 0-1

[Event "XVII Orsha-2019 Open"]
[Site "Orsha"]
[Date "2019.01.19"]
[Round "3.30"]
[White "Sokolov, Sergey"]
[Black "Ponikarovsky, Alexey"]
[Result "1/2-1/2"]
[ECO "D02"]
[WhiteElo "1756"]
[BlackElo "2007"]
[PlyCount "102"]
[EventDate "2019.01.18"]
[EventType "swiss"]
[EventCountry "BLR"]
[TimeControl "5400+30"]

1. d4 d5 2. Bf4 Nf6 3. Nf3 e6 4. e3 Bd6 5. Bg3 O-O 6. Bd3 b6 7. O-O Bb7 8. Nbd2 c5 9. c3 Bxg3 10. hxg3 Ne4 11. Rc1 Nxd2 12. Qxd2 Nd7 13. Rfe1 Rc8 14. Bb1 Qf6 15. Qc2 g6 16. Qa4 Rc7 17. Qd1 e5 18. dxe5 Nxe5 19. Nxe5 Qxe5 20. Qg4 f5 21. Qf4 Qxf4 22. gxf4 Rd8 23. Rcd1 Rcd7 24. Rd2 Bc6 25. Red1 Kf7 26. Bc2 Kf6 27. b3 h6 28. a3 g5 29. fxg5+ hxg5 30. b4 g4 31. Kf1 Ke5 32. Ke2 Rh8 33. Bb3 Rh2 34. Rg1 Bb5+ 35. Kd1 Bc6 36. g3 Rdh7 37. a4 Rh1 38. Rxh1 Rxh1+ 39. Ke2 Rb1 40. Bc2 Ra1 41. b5 Bb7 42. Rd1 Ra2 43. Kd2 a6 44. bxa6 Bxa6 45. Rb1 Bc8 46. Rxb6 Bd7 47. Ra6 Ra1 48. Ra7 Kd6 49. Ra6+ Ke5 50. Ra7 Kd6 51. Ra6+ Ke5 1/2-1/2

[Event "XVII Orsha-2019 Open"]
[Site "Orsha"]
[Date "2019.01.19"]
[Round "3.31"]
[White "Poghosyan, Sarmen"]
[Black "Naumovich, Yaroslav"]
[Result "0-1"]
[ECO "C66"]
[WhiteElo "1361"]
[BlackElo "1915"]
[PlyCount "70"]
[EventDate "2019.01.18"]
[EventType "swiss"]
[EventCountry "BLR"]
[TimeControl "5400+30"]

1. e4 e5 2. Nf3 Nc6 3. Bb5 d6 4. Bxc6+ bxc6 5. O-O Nf6 6. Re1 Be7 7. c3 c5 8. d4 cxd4 9. cxd4 exd4 10. Nxd4 Bd7 11. Nc3 O-O 12. Bf4 Re8 13. e5 dxe5 14. Bxe5 Bd6 15. Bxd6 cxd6 16. Rxe8+ Qxe8 17. Qf3 Rb8 18. Nb3 Ba4 19. Nxa4 Qxa4 20. Qd3 d5 21. Qg3 Rc8 22. Qd3 Rc4 23. Rd1 h6 24. a3 Qe8 25. Nd2 Rc7 26. Nf3 Qc8 27. Nd4 Rc1 28. h3 Ne4 29. a4 Qc5 30. b3 Rxd1+ 31. Qxd1 Nc3 32. Qd3 Qxd4 33. Qf5 Ne2+ 34. Kh1 Qd1+ 35. Kh2 Qg1# 0-1

[Event "XVII Orsha-2019 Open"]
[Site "Orsha"]
[Date "2019.01.19"]
[Round "3.32"]
[White "Loshakov, Dmitry"]
[Black "Nikolaev, Dmitry"]
[Result "0-1"]
[ECO "A48"]
[WhiteElo "1852"]
[BlackElo "1634"]
[PlyCount "50"]
[EventDate "2019.01.18"]
[EventType "swiss"]
[EventCountry "BLR"]
[TimeControl "5400+30"]

1. d4 Nf6 2. Nf3 g6 3. Bg5 Bg7 4. Nbd2 O-O 5. c3 d6 6. e4 c5 7. Be2 Bg4 8. h3 Bxf3 9. Bxf3 Nc6 10. d5 Ne5 11. Be2 a6 12. Qc2 b5 13. Nf3 Ned7 14. O-O Qc7 15. a4 c4 16. Nd4 h6 17. Be3 Nc5 18. f3 Nxa4 19. Rxa4 bxa4 20. Qxa4 Rfb8 21. Rb1 Nd7 22. Bxc4 Nb6 23. Qa5 Qxc4 24. Nc6 Qd3 25. Re1 Nc4 0-1

[Event "XVII Orsha-2019 Open"]
[Site "Orsha"]
[Date "2019.01.19"]
[Round "3.33"]
[White "Volchkov, Ivan"]
[Black "Platnitski, Siarhei"]
[Result "1-0"]
[ECO "A48"]
[WhiteElo "1685"]
[BlackElo "1383"]
[PlyCount "93"]
[EventDate "2019.01.18"]
[EventType "swiss"]
[EventCountry "BLR"]
[TimeControl "5400+30"]

1. d4 Nf6 2. Nf3 g6 3. Bf4 Bg7 4. e3 O-O 5. Bd3 d6 6. h3 c5 7. c3 b6 8. Nbd2 Bb7 9. O-O Nbd7 10. Re1 Re8 11. Bf1 e5 12. Bg5 h6 13. Bxf6 Nxf6 14. Nc4 b5 15. dxe5 Bxf3 16. Qxf3 dxe5 17. Rad1 Qb8 18. Nd6 Re6 19. Nxb5 e4 20. Qe2 Rb6 21. Rd2 Qe5 22. Na3 Qg5 23. Nc4 Re6 24. Red1 Qh4 25. Rd6 Rxd6 26. Nxd6 Nh5 27. Qc4 Rf8 28. Qxe4 Qxe4 29. Nxe4 Rb8 30. Rd2 Bf8 31. g4 Ng7 32. Nf6+ Kh8 33. Bc4 Ne6 34. Bxe6 fxe6 35. Nd7 Rd8 36. Rd1 Kg7 37. Kf1 Be7 38. Ke2 a5 39. Ne5 Rb8 40. Rd2 Rb6 41. Nc4 Ra6 42. e4 Ra8 43. Rd7 Kf8 44. f4 Bf6 45. e5 Bh4 46. Rh7 Bg3 47. Rh8+ 1-0

[Event "XVII Orsha-2019 Open"]
[Site "Orsha"]
[Date "2019.01.19"]
[Round "3.35"]
[White "Kulikov, Egor"]
[Black "Egorenkov, Igor"]
[Result "0-1"]
[ECO "B22"]
[WhiteElo "1557"]
[BlackElo "2213"]
[PlyCount "74"]
[EventDate "2019.01.18"]
[EventType "swiss"]
[EventCountry "BLR"]
[TimeControl "5400+30"]

1. e4 c5 2. c3 g6 3. d4 cxd4 4. cxd4 d5 5. e5 Nh6 6. Nf3 Nc6 7. a3 Bg4 8. Be3 Nf5 9. Bb5 Nxe3 10. fxe3 Bh6 11. Qb3 O-O 12. Bxc6 bxc6 13. Nbd2 Qa5 14. Ke2 Rab8 15. Qc3 Qb5+ 16. Kf2 Qxb2 17. Qxb2 Rxb2 18. Rhb1 Rfb8 19. Rxb2 Rxb2 20. Ke2 Bc8 21. Kd3 Bf5+ 22. Ke2 e6 23. Ne1 Bf8 24. Nd3 Rc2 25. a4 Rc3 26. Nf2 Bh6 27. Nd1 Bg4+ 28. Nf3 Rc2+ 29. Kf1 c5 30. dxc5 Rxc5 31. Kf2 a5 32. Kg3 Bf5 33. Nd4 Rc4 34. Nxf5 gxf5 35. Kf3 f4 36. Nb2 Rc3 37. Nd1 Rb3 0-1

[Event "XVII Orsha-2019 Open"]
[Site "Orsha"]
[Date "2019.01.19"]
[Round "3.36"]
[White "Bialiauski, Artsiom"]
[Black "Masterova, Daria"]
[Result "1-0"]
[ECO "D03"]
[WhiteElo "1914"]
[BlackElo "1500"]
[PlyCount "89"]
[EventDate "2019.01.18"]
[EventType "swiss"]
[EventCountry "BLR"]
[TimeControl "5400+30"]

1. d4 d5 2. Nf3 c6 3. Bg5 Nf6 4. Bxf6 exf6 5. e3 Bd6 6. Bd3 O-O 7. Nbd2 f5 8. c4 Bb4 9. cxd5 Qxd5 10. O-O Be6 11. a3 Be7 12. Qc2 Nd7 13. Nb1 g6 14. Nc3 Qd6 15. b4 b5 16. Rfd1 a6 17. Rac1 Rfc8 18. Nd2 Nf6 19. Nb3 Bxb3 20. Qxb3 Qe6 21. Qb2 a5 22. Be2 axb4 23. axb4 Ne4 24. d5 cxd5 25. Nxb5 Bf6 26. Nd4 Qb6 27. b5 Nc5 28. Bf3 Ne4 29. Be2 Rab8 30. Qb4 Bxd4 31. exd4 Nd6 32. Rc5 Ne4 33. Rcc1 Nd6 34. f3 Nc4 35. Bxc4 dxc4 36. Rxc4 Rxc4 37. Qxc4 Qxb5 38. Qc7 Qb6 39. Qc5 Qb3 40. Re1 Qb4 41. Re8+ Kg7 42. Qe5+ Kh6 43. Rxb8 Qd2 44. Rb1 Qc2 45. Re1 1-0